fUST/lending_fUST_20250107
["ID","MTS","AMOUNT","RATE_DAILY","PERIOD"]
[347928099,1736217017468,-505.0,0.00019178,2]
[347928100,1736217017492,-252.285511,0.00019178,2]
[347928101,1736217017514,-501.59687076,0.00019178,2]
[347928102,1736217017537,-502.21569229,0.00019178,2]
[347928103,1736217017559,-502.06013485,0.00019178,2]
[347928104,1736217017582,-502.95584429,0.00019178,2]
[347928105,1736217017605,-500.89135634,0.00019178,2]
[347928106,1736217017627,-501.44888269,0.00019178,2]
[347928107,1736217017650,-500.0,0.00019178,2]
[347928108,1736217017675,-508.16108229,0.00019178,2]
[347928109,1736217017698,-503.44588144,0.00019178,2]
[347928110,1736217017721,-501.29340862,0.00019178,2]
[347928111,1736217017744,-502.3559622,0.00019178,2]
[347928112,1736217017766,-496.88972974,0.00019178,2]
[347928113,1736217017791,-504.98748012,0.00019178,2]
[347928114,1736217017813,-502.52529186,0.00019178,2]
[347928115,1736217017837,-500.0,0.00019178,2]
[347928116,1736217017861,-500.47829756,0.00019178,2]
[347928117,1736217017884,-500.0,0.00019178,2]
[347928118,1736217017906,-500.43291847,0.00019178,2]
[347928119,1736217017932,-502.10093253,0.00019178,2]
[347928120,1736217017956,-500.98817437,0.00019178,2]
[347928121,1736217017979,-503.4196998,0.00019178,2]
[347928122,1736217018001,-501.46250868,0.00019178,2]
[347928123,1736217018024,-504.16603961,0.00019178,2]
[347928124,1736217018046,-501.5399656,0.00019178,2]
[347928125,1736217018069,-502.35343339,0.00019178,2]
[347928126,1736217018092,-501.62044846,0.00019178,2]
[347928127,1736217018115,-501.71761605,0.00019178,2]
[347928128,1736217018137,-500.0,0.00019178,2]
[347928129,1736217018161,-501.28085761,0.00019178,2]
[347928130,1736217018184,-504.9249329,0.00019178,2]
[347928131,1736217018208,-501.15981117,0.00019178,2]
[347928132,1736217018231,-504.43925365,0.00019178,2]
[347928133,1736217018253,-502.68045711,0.00019178,2]
[347928134,1736217018277,-501.48341489,0.00019178,2]
[347928135,1736217018301,-500.0,0.00019178,2]
[347928136,1736217018325,-502.04917897,0.00019178,2]
[347928137,1736217018349,-500.0,0.00019178,2]
[347928138,1736217018372,-501.91378876,0.00019178,2]
[347928139,1736217018395,-504.5759311,0.00019178,2]
[347928140,1736217018419,-506.99790122,0.00019178,2]
[347928141,1736217018443,-505.71723902,0.00019178,2]
[347928142,1736217018465,-501.09616531,0.00019178,2]
[347928143,1736217018489,-500.86054644,0.00019178,2]
[347928144,1736217018511,-504.49701787,0.00019178,2]
[347928145,1736217018535,-500.0,0.00019178,2]
[347928146,1736217018559,-500.0,0.00019178,2]
[347928147,1736217018583,-500.0,0.00019178,2]
[347928148,1736217018605,-501.37452804,0.00019178,2]
[347928149,1736217018628,-501.18439416,0.00019178,2]
[347928150,1736217018654,-7213.71,0.00019178,2]
[347928151,1736217018680,-503.94099238,0.00019178,2]
[347928152,1736217018703,-500.0,0.00019178,2]
[347928153,1736217018726,-502.37123939,0.00019178,2]
[347928154,1736217018749,-501.45508006,0.00019178,2]
[347928155,1736217018772,-502.67818604,0.00019178,2]
[347928156,1736217018797,-501.4150425,0.00019178,2]
[347928157,1736217018820,-490.78220145,0.00019178,2]
[347928158,1736217018843,-503.12945493,0.00019178,2]
[347928159,1736217018867,-310.20483734,0.00019178,2]
[347928160,1736217018891,-525.88507291,0.00019178,2]
[347928161,1736217018915,-504.01027224,0.00019178,2]
[347928162,1736217018941,-501.48640763,0.00019178,2]
[347928163,1736217018965,-502.74283286,0.00019178,2]
[347928164,1736217018990,-500.0,0.00019178,2]
[347928165,1736217019014,-500.0,0.00019178,2]
[347928166,1736217019037,-501.10712025,0.00019178,2]
[347928167,1736217019060,-507.02319728,0.00019178,2]
[347928168,1736217019083,-501.40990475,0.00019178,2]
[347928169,1736217019106,-502.21204696,0.00019178,2]
[347928170,1736217019130,-253.86974357,0.00019178,2]
[347928171,1736217019154,-503.26896962,0.00019178,2]
[347928172,1736217019177,-506.95703481,0.00019178,2]
[347928173,1736217019200,-503.94217837,0.00019178,2]
[347928174,1736217019225,-500.54175542,0.00019178,2]
[347928175,1736217019249,-502.35923281,0.00019178,2]
[347928176,1736217019271,-208.40530885,0.00019178,2]
[347928177,1736217019294,-459.14345036,0.00019178,2]
[347928178,1736217019319,-503.52028319,0.00019178,2]
[347928179,1736217019344,-500.0,0.00019178,2]
[347928180,1736217019370,-2278.92,0.00019178,2]
[347928181,1736217019394,-501.45452543,0.00019178,2]
[347928182,1736217019418,-507.6713145,0.00019178,2]
[347928183,1736217019441,-995.12,0.00019178,2]
[347928184,1736217019464,-500.0,0.00019178,2]
[347928185,1736217019487,-501.860148,0.00019178,2]
[347928186,1736217019510,-500.0,0.00019178,2]
[347928187,1736217019537,-500.0,0.00019178,2]
[347928188,1736217019559,-503.90777021,0.00019178,2]
[347928189,1736217019582,-503.95317973,0.00019178,2]
[347928190,1736217019606,-500.0,0.00019178,2]
[347928191,1736217019629,-501.28441925,0.00019178,2]
[347928192,1736217019651,-500.80816742,0.00019178,2]
[347928193,1736217019674,-500.0,0.00019178,2]
[347928194,1736217019697,-500.0,0.00019178,2]
[347928195,1736217019720,-502.89470528,0.00019178,2]
[347928196,1736217019743,-505.46364112,0.00019178,2]
[347928197,1736217019766,-501.90005031,0.00019178,2]
[347928198,1736217019792,-888.1,0.00019178,2]
[347928199,1736217019813,-501.48610856,0.00019178,2]
[347928200,1736217019837,-503.4292213,0.00019178,2]
[347928201,1736217019859,-501.50910768,0.00019178,2]
[347928202,1736217019881,-504.77871355,0.00019178,2]
[347928203,1736217019904,-506.72876644,0.00019178,2]
[347928204,1736217019928,-503.5970104,0.00019178,2]
[347928205,1736217019952,-663.82,0.00019178,2]
[347928206,1736217019976,-629.69,0.00019178,2]
[347928207,1736217019998,-504.44826503,0.00019178,2]
[347928208,1736217020021,-500.0,0.00019178,2]
[347928209,1736217020043,-503.02883746,0.00019178,2]
[347928210,1736217020064,-502.28565089,0.00019178,2]
[347928211,1736217020086,-500.0,0.00019178,2]
[347928212,1736217020108,-501.57576852,0.00019178,2]
[347928213,1736217020131,-500.01061332,0.00019178,2]
[347928214,1736217020152,-501.40717781,0.00019178,2]
[347928215,1736217020178,-503.17489442,0.00019178,2]
[347928216,1736217020202,-179.10119615,0.00019178,2]
[347928217,1736217020231,-912.88,0.00019178,2]
[347928218,1736217020255,-503.40747948,0.00019178,2]
[347928219,1736217020279,-500.0,0.00019178,2]
[347928220,1736217020301,-501.77159371,0.00019178,2]
[347928221,1736217020324,-501.53636598,0.00019178,2]
[347928222,1736217020346,-502.94547662,0.00019178,2]
[347928223,1736217020368,-487.00033787,0.00019178,2]
[347928224,1736217020390,-509.19055744,0.00019178,2]
[347928225,1736217020413,-506.42902068,0.00019178,2]
[347928226,1736217020436,-549.13,0.00019178,2]
[347928227,1736217020459,-500.0,0.00019178,2]
[347928228,1736217020482,-500.0,0.00019178,2]
[347928229,1736217020504,-502.29537754,0.00019178,2]
[347928230,1736217020527,-500.0,0.00019178,2]
[347928231,1736217020552,-505.6463153,0.00019178,2]
[347928232,1736217020575,-500.0,0.00019178,2]
[347928233,1736217020598,-501.76642101,0.00019178,2]
[347928234,1736217020620,-500.0,0.00019178,2]
[347928235,1736217020643,-500.0,0.00019178,2]
[347928236,1736217020667,-890.09,0.00019178,2]
[347928237,1736217020690,-501.68907565,0.00019178,2]
[347928238,1736217020715,-504.98394955,0.00019178,2]
[347928239,1736217020742,-500.0,0.00019178,2]
[347928240,1736217020766,-501.60533131,0.00019178,2]
[347928241,1736217020797,-500.0,0.00019178,2]
[347928242,1736217020820,-501.72508946,0.00019178,2]
[347928243,1736217020843,-503.30737615,0.00019178,2]
[347928244,1736217020867,-500.0,0.00019178,2]
[347928245,1736217020889,-510.98832685,0.00019178,2]
[347928246,1736217020911,-501.25492891,0.00019178,2]
[347928247,1736217020936,-504.32781347,0.00019178,2]
[347928248,1736217020960,-504.98341535,0.00019178,2]
[347928249,1736217020983,-502.01005544,0.00019178,2]
[347928250,1736217021006,-500.0,0.00019178,2]
[347928251,1736217021028,-502.25838501,0.00019178,2]
[347928252,1736217021052,-504.52877698,0.00019178,2]
[347928253,1736217021074,-502.46258475,0.00019178,2]
[347928254,1736217021365,-504.03510462,0.00019178,2]
[347928255,1736217021389,-503.1530535,0.00019178,2]
[347928256,1736217021414,-654.87,0.00019178,2]
[347928257,1736217021438,-502.86534896,0.00019178,2]
[347928258,1736217021462,-1023.13,0.00019178,2]
[347928259,1736217021485,-500.0,0.00019178,2]
[347928260,1736217021509,-505.62247881,0.00019178,2]
[347928261,1736217021533,-507.94484852,0.00019178,2]
[347928262,1736217021560,-503.44794152,0.00019178,2]
[347928263,1736217021805,-389.00049256,0.00019178,2]
[347928264,1736217021836,-500.0,0.00019178,2]
[347928265,1736217021862,-502.55727906,0.00019178,2]
[347928266,1736217021885,-502.9109856,0.00019178,2]
[347928267,1736217021909,-500.0,0.00019178,2]
[347928268,1736217021936,-502.45312334,0.00019178,2]
[347928269,1736217021963,-500.0,0.00019178,2]
[347928270,1736217021986,-503.72294317,0.00019178,2]
[347928271,1736217022010,-500.0,0.00019178,2]
[347928272,1736217022033,-500.0,0.00019178,2]
[347928273,1736217022057,-501.29240333,0.00019178,2]
[347928274,1736217022081,-560.74,0.00019178,2]
[347928275,1736217022105,-500.0,0.00019178,2]
[347928276,1736217022128,-611.42774607,0.00019178,2]
[347928277,1736217022152,-506.02848653,0.00019178,2]
[347928278,1736217022178,-500.0,0.00019178,2]
[347928279,1736217022202,-502.34732786,0.00019178,2]
[347928280,1736217022226,-36.93450841,0.00019178,2]
[347928309,1736217032566,-467.08518378,0.00019178,2]
[347928310,1736217032576,-502.04022084,0.00019178,2]
[347928312,1736217032585,-503.06515415,0.00019178,2]
[347928314,1736217032595,-700.58,0.00019178,2]
[347928316,1736217032604,-503.19714691,0.00019178,2]
[347928318,1736217032613,-504.47141655,0.00019178,2]
[347928320,1736217032623,-501.15149218,0.00019178,2]
[347928322,1736217032632,-504.69317782,0.00019178,2]
[347928324,1736217032641,-502.69117059,0.00019178,2]
[347928326,1736217032651,-500.0,0.00019178,2]
[347928328,1736217032660,-500.0,0.00019178,2]
[347928329,1736217032669,-501.73083124,0.00019178,2]
[347928332,1736217032680,-500.0,0.00019178,2]
[347928335,1736217032689,-500.0,0.00019178,2]
[347928338,1736217032699,-500.0,0.00019178,2]
[347928341,1736217032708,-501.15894678,0.00019178,2]
[347928344,1736217032717,-878.34,0.00019178,2]
[347928347,1736217032726,-504.80834302,0.00019178,2]
[347928349,1736217032735,-502.03880735,0.00019178,2]
[347928352,1736217032745,-502.06963717,0.00019178,2]
[347928355,1736217032754,-500.0,0.00019178,2]
[347928358,1736217032763,-500.0,0.00019178,2]
[347928361,1736217032773,-261.35961738,0.00019178,2]
[347928364,1736217032782,-428.28174758,0.00019178,2]
[347928366,1736217032796,-71.71825242,0.00019178,2]
[347928368,1736217032806,-503.85124066,0.00019178,2]
[347928370,1736217032815,-500.0,0.00019178,2]
[347928372,1736217032824,-503.0948667,0.00019178,2]
[347928374,1736217032833,-500.0,0.00019178,2]
[347928375,1736217032842,-506.97344428,0.00019178,2]
[347928377,1736217032851,-500.0,0.00019178,2]
[347928379,1736217032861,-165.55519027,0.00019178,2]
[347928381,1736217032870,-500.0,0.00019178,2]
[347928383,1736217032880,-895.17,0.00019178,2]
[347928385,1736217032889,-500.0,0.00019178,2]
[347928387,1736217032899,-507.71171259,0.00019178,2]
[347928389,1736217032908,-504.73232171,0.00019178,2]
[347928391,1736217032918,-508.49726524,0.00019178,2]
[347928393,1736217032930,-500.0,0.00019178,2]
[347928395,1736217032941,-530.46126466,0.00019178,2]
[347928397,1736217032950,-501.16013575,0.00019178,2]
[347928399,1736217032959,-500.0,0.00019178,2]
[347928400,1736217032969,-505.85590517,0.00019178,2]
[347928402,1736217032978,-84.74294628,0.00019178,2]
[347928405,1736217032990,-420.30611485,0.00019178,2]
[347928406,1736217032999,-500.0,0.00019178,2]
[347928407,1736217033009,-519.56970672,0.00019178,2]
[347928409,1736217033018,-510.80820122,0.00019178,2]
[347928411,1736217033027,-508.89844948,0.00019178,2]
[347928412,1736217033036,-500.0,0.00019178,2]
[347928414,1736217033046,-500.0,0.00019178,2]
[347928416,1736217033055,-189.23748691,0.00019178,2]
[347928418,1736217033065,-505.23029876,0.00019178,2]
[347928420,1736217033074,-509.87566188,0.00019178,2]
[347928421,1736217033084,-405.63566277,0.00019178,2]
[347928422,1736217033094,-506.99186371,0.00019178,2]
[347928423,1736217033104,-630.942011,0.00019178,2]
[347928424,1736217033114,-630.942011,0.00019178,2]
[347928425,1736217033123,-507.59679577,0.00019178,2]
[347928426,1736217033133,-507.73008347,0.00019178,2]
[347928427,1736217033143,-500.0,0.00019178,2]
[347928428,1736217033152,-502.59293668,0.00019178,2]
[347928429,1736217033162,-234.54184074,0.00019178,2]
[347928430,1736217033172,-222.81688875,0.00019178,2]
[347928431,1736217033188,-613.315005,0.00019178,2]
[347928432,1736217033200,-833.69824618,0.00019178,2]
[347928450,1736217038495,-25018.78409205,0.00018388,2]
[347928453,1736217038510,-130517.48545935,0.00018388,2]
[347928455,1736217038520,-1360.86986007,0.00019178,2]
[347928457,1736217038529,-508.0180781,0.00019178,2]
[347928459,1736217038539,-500.0,0.00019178,2]
[347928461,1736217038548,-3042.9,0.00019178,2]
[347928463,1736217038557,-512.37693171,0.00019178,2]
[347928465,1736217038567,-660.85,0.00019178,2]
[347928467,1736217038576,-151.0,0.00019178,2]
[347928469,1736217038585,-500.0,0.00019178,2]
[347928471,1736217038594,-500.0,0.00019178,2]
[347928473,1736217038603,-500.0,0.00019178,2]
[347928475,1736217038612,-500.0,0.00019178,2]
[347928477,1736217038622,-864.1,0.00019178,2]
[347928479,1736217038632,-505.44469452,0.00019178,2]
[347928481,1736217038641,-505.29484724,0.00019178,2]
[347928483,1736217038651,-500.0,0.00019178,2]
[347928485,1736217038660,-500.0,0.00019178,2]
[347928487,1736217038670,-500.0,0.00019178,2]
[347928489,1736217038683,-153.24526732,0.00019178,2]
[347928490,1736217038692,-602.76,0.00019178,2]
[347928491,1736217038702,-517.42034276,0.00019178,2]
[347928492,1736217038711,-505.31435597,0.00019178,2]
[347928493,1736217038721,-630.36813314,0.00019178,2]
[347928494,1736217038730,-500.0,0.00019178,2]
[347928495,1736217038739,-500.0,0.00019178,2]
[347928496,1736217038748,-4743.36,0.00019178,2]
[347928497,1736217038758,-500.0,0.00019178,2]
[347928498,1736217038768,-1889.72,0.00019178,2]
[347928499,1736217038777,-500.0,0.00019178,2]
[347928500,1736217038788,-1128.56,0.00019178,2]
[347928501,1736217038797,-506.96261246,0.00019178,2]
[347928502,1736217038806,-899.73,0.00019178,2]
[347928503,1736217038816,-151.0,0.00019178,2]
[347928504,1736217038825,-500.0,0.00019178,2]
[347928505,1736217038834,-3001.04129545,0.00019178,2]
[347928506,1736217038847,-44.31870455,0.00019178,2]
[347928507,1736217038856,-500.0,0.00019178,2]
[347928508,1736217038865,-509.60195996,0.00019178,2]
[347928509,1736217038875,-500.0,0.00019178,2]
[347928510,1736217038884,-115.79536367,0.00019178,2]
[347928565,1736217043478,-395.7888748,0.00019178,2]
[347928567,1736217043488,-500.0,0.00019178,2]
[347928569,1736217043498,-833.21,0.00019178,2]
[347928571,1736217043508,-513.61905161,0.00019178,2]
[347928573,1736217043517,-500.0,0.00019178,2]
[347928575,1736217043527,-500.0,0.00019178,2]
[347928577,1736217043537,-500.0,0.00019178,2]
[347928580,1736217043546,-1404.22,0.00019178,2]
[347928582,1736217043556,-509.66757987,0.00019178,2]
[347928583,1736217043566,-616.03714943,0.00019178,2]
[347928586,1736217043577,-500.0,0.00019178,2]
[347928588,1736217043586,-500.0,0.00019178,2]
[347928589,1736217043596,-528.62632264,0.00019178,2]
[347928592,1736217043606,-1777.21,0.00019178,2]
[347928595,1736217043615,-23580.45,0.00019178,2]
[347928597,1736217043624,-500.0,0.00019178,2]
[347928600,1736217043634,-374.45928518,0.00019178,2]
[347928603,1736217043643,-257.911131,0.00019178,2]
[347928605,1736217043653,-643.29,0.00019178,2]
[347928607,1736217043663,-257.911131,0.00019178,2]
[347928610,1736217043672,-346.640044,0.00019178,2]
[347928611,1736217043684,-517.47,0.00019178,2]
[347928613,1736217043694,-346.640044,0.00019178,2]
[347928615,1736217043703,-909.87,0.00019178,2]
[347928618,1736217043713,-504.91672102,0.00019178,2]
[347928619,1736217043722,-2173.06,0.00019178,2]
[347928622,1736217043732,-500.0,0.00019178,2]
[347928624,1736217043742,-500.0,0.00019178,2]
[347928626,1736217043752,-1065.58,0.00019178,2]
[347928628,1736217043761,-503.0872121,0.00019178,2]
[347928630,1736217043771,-501.12752781,0.00019178,2]
[347928632,1736217043780,-500.0,0.00019178,2]
[347928634,1736217043792,-926.04,0.00019178,2]
[347928636,1736217043802,-1073.2,0.00019178,2]
[347928638,1736217043812,-151.0,0.00019178,2]
[347928640,1736217043822,-500.0,0.00019178,2]
[347928642,1736217043831,-151.0,0.00019178,2]
[347928644,1736217043840,-500.0,0.00019178,2]
[347928646,1736217043851,-917.31,0.00019178,2]
[347928648,1736217043861,-500.0,0.00019178,2]
[347928650,1736217043870,-500.0,0.00019178,2]
[347928652,1736217043879,-500.0,0.00019178,2]
[347928654,1736217043888,-500.0,0.00019178,2]
[347928656,1736217043898,-501.48582334,0.00019178,2]
[347928658,1736217043907,-500.0,0.00019178,2]
[347928660,1736217043917,-607.33565804,0.00019178,2]
[347928857,1736217135025,170.712397,0.00013973,2]
[347928858,1736217144720,739.29030989,0.00025,120]
[347928860,1736217826713,-300.0,0.0001837,2]
[347928861,1736217826738,-301.0,0.0001837,2]
[347928862,1736217826762,-19956.347942,0.00018371,2]
[347928863,1736217826787,-473.401,0.0001848,2]
[347928864,1736217826811,-422.81888865,0.000189,2]
[347928865,1736217826834,-10377.56864738,0.00019028,2]
[347928866,1736217826858,-254.872,0.00019043,2]
[347928867,1736217826881,-170.54969646,0.00019078,2]
[347928868,1736217826904,-504.12813619,0.00019173,2]
[347928869,1736217826928,-500.0,0.00019177,2]
[347928870,1736217826955,-500.0,0.00019177,2]
[347928871,1736217826980,-500.0,0.00019177,2]
[347928872,1736217827004,-500.0,0.00019177,2]
[347928873,1736217827030,-500.0,0.00019177,2]
[347928874,1736217827055,-500.0,0.00019177,2]
[347928875,1736217827079,-500.0,0.00019177,2]
[347928876,1736217827104,-500.0,0.00019177,2]
[347928877,1736217827127,-500.0,0.00019177,2]
[347928878,1736217827153,-500.0,0.00019177,2]
[347928879,1736217827179,-500.0,0.00019177,2]
[347928880,1736217827201,-600.73632099,0.00019177,2]
[347928881,1736217827232,-500.0,0.00019177,2]
[347928882,1736217827261,-500.0,0.00019177,2]
[347928883,1736217827288,-577.24731634,0.00019177,2]
[347928884,1736217827319,-500.0,0.00019177,2]
[347928885,1736217827345,-499.99999999,0.00019177,2]
[347928886,1736217827369,-500.0,0.00019177,2]
[347928887,1736217827394,-500.0,0.00019177,2]
[347928888,1736217827418,-500.0,0.00019177,2]
[347928889,1736217827443,-302.10761758,0.00019177,2]
[347928890,1736217827466,-414.12874468,0.00019177,2]
[347928891,1736217827493,-500.0,0.00019177,2]
[347928892,1736217827517,-504.19011161,0.00019178,2]
[347928893,1736217827541,-507.13718862,0.00019178,2]
[347928894,1736217827565,-507.53544312,0.00019178,2]
[347928895,1736217827590,-507.46940706,0.00019178,2]
[347928896,1736217827613,-501.84115062,0.00019178,2]
[347928897,1736217827636,-302.99208669,0.00019178,2]
[347928898,1736217827660,-500.0,0.00019178,2]
[347928899,1736217827683,-541.44944104,0.00019178,2]
[347928900,1736217827706,-505.43025316,0.00019178,2]
[347928901,1736217827729,-501.51041881,0.00019178,2]
[347928902,1736217827752,-527.17249583,0.00019178,2]
[347928903,1736217827775,-438.36569318,0.00019178,2]
[347928904,1736217983169,2232.43382121,0.00025,120]
[347928906,1736218036131,-399.999471,0.00018151,2]
[347928907,1736218036154,-473.584,0.0001848,2]
[347928908,1736218036175,-250.70845826,0.00018698,2]
[347928909,1736218036196,-262.41776457,0.00018887,2]
[347928910,1736218036217,-541.30396943,0.000189,2]
[347928911,1736218036238,-170.54969645,0.00019078,2]
[347928912,1736218036258,-302.90913937,0.00019082,2]
[347928913,1736218036281,-151.62907567,0.00019166,2]
[347928914,1736218036303,-487.51187146,0.00019173,2]
[347928915,1736218036326,-500.0,0.00019173,2]
[347928916,1736218036349,-300.0,0.00019176,2]
[347928917,1736218036372,-840.82952934,0.00019177,2]
[347928918,1736218036393,-500.0,0.00019177,2]
[347928919,1736218036581,-500.0,0.00019177,2]
[347928920,1736218036606,-261.27437681,0.00019177,2]
[347928921,1736218036631,-500.0,0.00019177,2]
[347928922,1736218036657,-591.67610458,0.00019177,2]
[347928923,1736218036679,-500.0,0.00019177,2]
[347928924,1736218036703,-505.9355884,0.00019177,2]
[347928925,1736218036726,-353.35371795,0.00019177,2]
[347928926,1736218036751,-500.0,0.00019177,2]
[347928927,1736218036774,-500.0,0.00019177,2]
[347928928,1736218036799,-500.0,0.00019177,2]
[347928929,1736218036823,-500.0,0.00019177,2]
[347928930,1736218036847,-500.0,0.00019177,2]
[347928931,1736218036872,-500.0,0.00019177,2]
[347928932,1736218036895,-500.0,0.00019177,2]
[347928933,1736218036915,-509.36238768,0.00019177,2]
[347928934,1736218036940,-500.0,0.00019177,2]
[347928935,1736218036964,-500.0,0.00019177,2]
[347928936,1736218036987,-500.0,0.00019177,2]
[347928937,1736218037011,-184.15754377,0.00019177,2]
[347928938,1736218037033,-500.0,0.00019178,2]
[347928939,1736218037054,-501.43853962,0.00019178,2]
[347928940,1736218037075,-504.37036214,0.00019178,2]
[347928941,1736218037096,-502.88426972,0.00019178,2]
[347928942,1736218037117,-505.9066539,0.00019178,2]
[347928943,1736218037138,-498.64054384,0.00019178,2]
[347928944,1736218037159,-504.99732311,0.00019178,2]
[347928945,1736218037180,-501.66612758,0.00019178,2]
[347928946,1736218037202,-504.87747818,0.00019178,2]
[347928947,1736218037223,-506.29861283,0.00019178,2]
[347928948,1736218037245,-506.23210658,0.00019178,2]
[347928949,1736218037269,-506.32924664,0.00019178,2]
[347928950,1736218037297,-620.20473957,0.00019178,2]
[347928951,1736218037323,-506.33327976,0.00019178,2]
[347928952,1736218037346,-506.26449381,0.00019178,2]
[347928953,1736218037369,-506.08584717,0.00019178,2]
[347928954,1736218037391,-1128.534128,0.00019178,2]
[347928955,1736218037412,-500.0,0.00019178,2]
[347928956,1736218037435,-1128.534128,0.00019178,2]
[347928957,1736218037457,-506.41587623,0.00019178,2]
[347928958,1736218037479,-506.18003651,0.00019178,2]
[347928959,1736218037501,-500.0,0.00019178,2]
[347928960,1736218037522,-503.66450912,0.00019178,2]
[347928961,1736218037543,-377.60321626,0.00019178,2]
[347928962,1736218037564,-500.0,0.00019178,2]
[347928963,1736218037588,-502.24199845,0.00019178,2]
[347928964,1736218037611,-504.83988614,0.00019178,2]
[347928965,1736218037635,-507.87030998,0.00019178,2]
[347928966,1736218037658,-500.0,0.00019178,2]
[347928967,1736218037682,-500.0,0.00019178,2]
[347928968,1736218037704,-500.0,0.00019178,2]
[347928969,1736218037725,-469.653362,0.00019178,2]
[347928970,1736218037747,-500.0,0.00019178,2]
[347928971,1736218037769,-598.18092426,0.00019178,2]
[347928972,1736218037791,-500.0,0.00019178,2]
[347928973,1736218037812,-500.0,0.00019178,2]
[347928974,1736218037833,-545.058135,0.00019178,2]
[347928975,1736218037855,-545.058135,0.00019178,2]
[347928976,1736218037877,-798.49,0.00019178,2]
[347928977,1736218037899,-889.71,0.00019178,2]
[347928978,1736218037920,-500.0,0.00019178,2]
[347928979,1736218037943,-500.0,0.00019178,2]
[347928980,1736218037965,-500.0,0.00019178,2]
[347928981,1736218037987,-500.0,0.00019178,2]
[347928982,1736218038010,-335.39870315,0.00019178,2]
[347928983,1736218038032,-421.0182951,0.00019178,2]
[347928984,1736218038054,-500.0,0.00019178,2]
[347928985,1736218038076,-500.0,0.00019178,2]
[347928986,1736218038098,-500.0,0.00019178,2]
[347928987,1736218038120,-500.0,0.00019178,2]
[347928988,1736218038143,-500.0,0.00019178,2]
[347928989,1736218038166,-507.26328595,0.00019178,2]
[347928990,1736218038189,-500.0,0.00019178,2]
[347928991,1736218038211,-504.18865648,0.00019178,2]
[347928992,1736218038234,-503.82593398,0.00019178,2]
[347928993,1736218038259,-500.0,0.00019178,2]
[347928994,1736218038286,-500.0,0.00019178,2]
[347928995,1736218038311,-745.93,0.00019178,2]
[347928996,1736218038336,-994.87,0.00019178,2]
[347928997,1736218038360,-500.0,0.00019178,2]
[347928998,1736218038385,-503.23368944,0.00019178,2]
[347928999,1736218038408,-504.52788573,0.00019178,2]
[347929000,1736218038431,-502.42172881,0.00019178,2]
[347929001,1736218038453,-603.45,0.00019178,2]
[347929002,1736218038476,-482.38271864,0.00019178,2]
[347929003,1736218038499,-500.0,0.00019178,2]
[347929004,1736218038524,-500.0,0.00019178,2]
[347929005,1736218038547,-500.0,0.00019178,2]
[347929006,1736218038571,-500.0,0.00019178,2]
[347929007,1736218038594,-507.80314829,0.00019178,2]
[347929008,1736218038617,-507.84953151,0.00019178,2]
[347929009,1736218038642,-636.16,0.00019178,2]
[347929010,1736218038666,-500.0,0.00019178,2]
[347929011,1736218038689,-980.5,0.00019178,2]
[347929012,1736218038712,-500.0,0.00019178,2]
[347929013,1736218038735,-505.42892585,0.00019178,2]
[347929014,1736218038761,-874.84,0.00019178,2]
[347929015,1736218038783,-500.0,0.00019178,2]
[347929016,1736218038807,-526.25,0.00019178,2]
[347929017,1736218038830,-2918.47,0.00019178,2]
[347929018,1736218038853,-853.0,0.00019178,2]
[347929019,1736218038876,-500.0,0.00019178,2]
[347929020,1736218038899,-500.0,0.00019178,2]
[347929021,1736218038921,-508.30759647,0.00019178,2]
[347929022,1736218038944,-627.59,0.00019178,2]
[347929023,1736218038966,-505.74164884,0.00019178,2]